[Event "ESP-chT 1st Division 2020"]
[Site "Padron"]
[Date "2020.10.09"]
[Round "7.8"]
[White "Alonso Moyano, Jonathan"]
[Black "Pile, Richard"]
[Result "1-0"]
[ECO "B24"]
[WhiteElo "2334"]
[BlackElo "2450"]
[Annotator "ChessBase"]
[PlyCount "103"]
[EventDate "2020.10.01"]
[EventType "team-tourn"]
[EventCountry "ESP"]
[SourceTitle "playchess.com"]
[Source "ChessBase"]
[SourceQuality "1"]
[TimeControl "5400+30"]

1. e4 {[%emt 0:00:00]} c5 {[%emt 0:00:45]} 2. Nc3 {[%emt 0:00:00]} Nc6 {[%emt 0:01:53]} 3. Bb5 {[%emt 0:00:00]} Nd4 {[%emt 0:00:56]} 4. Bc4 {[%emt 0:00:02]} e6 {[%emt 0:02:41]} 5. Nge2 {[%emt 0:00:27]} Nf6 {[%emt 0:04:27]} 6. O-O {[%emt 0:08:22]} a6 {[%emt 0:02:42]} 7. a4 {[%emt 0:00:08]} d5 {[%emt 0:07:59]} 8. exd5 {[%emt 0:00:12]} exd5 {[%emt 0:00:20]} 9. Ba2 {[%emt 0:00:10]} Bg4 {[%emt 0:01:28]} 10. f3 {[%emt 0:04:15]} Be6 {[%emt 0:07:20]} 11. d3 {[%emt 0:03:18]} h6 {[%emt 0:05:34]} 12. Nxd4 {[%emt 0:06:44]} cxd4 {[%emt 0:00:14]} 13. Ne2 {[%emt 0:00:07]} Bc5 {[%emt 0:00:18]} 14. Qe1 {[%emt 0:10:27]} a5 {[%emt 0:05:03]} 15. Bb3 {[%emt 0:04:58]} Qb6 {[%emt 0:09:17]} 16. Bd2 {[%emt 0:04:07]} Kf8 {[%emt 0:04:22]} 17. g4 {[%emt 0:03:40]} h5 {[%emt 0:05:22]} 18. g5 {[%emt 0:06:26]} Ng8 {[%emt 0:01:22]} 19. Nf4 {[%emt 0:02:58]} Re8 {[%emt 0:00:23]} 20. Rf2 {[%emt 0:05:09]} Bd6 {[%emt 0:04:13]} 21. Bxa5 {[%emt 0:07:34]} Qa6 {[%emt 0:03:47]} 22. Bb4 {[%emt 0:00:30]} Ne7 {[%emt 0:00:21]} 23. Qd2 {[%emt 0:06:02]} Qb6 {[%emt 0:09:33]} 24. Bxd6 {[%emt 0:05:56]} Qxd6 {[%emt 0:00:06]} 25. Re1 {[%emt 0:02:33]} Nf5 {[%emt 0:01:28]} 26. Rfe2 {[%emt 0:00:47]} Ne3 {[%emt 0:00:18]} 27. Ng2 {[%emt 0:00:07]} Nf5 {[%emt 0:00:49]} 28. Qf4 {[%emt 0:00:46]} Rd8 {[%emt 0:01:08]} 29. Qe5 {[%emt 0:03:12]} h4 {[%emt 0:04:18]} 30. Nf4 {[%emt 0:00:46]} h3 {[%emt 0:09:10]} 31. Bxd5 {[%emt 0:03:03]} Bd7 {[%emt 0:01:03]} 32. Qxd6+ {[%emt 0:07:04]} Nxd6 {[%emt 0:00:05]} 33. Bb3 {[%emt 0:02:26]} Rh4 {[%emt 0:02:27]} 34. Nd5 {[%emt 0:00:06]} Bc6 {[%emt 0:00:23]} 35. Re5 {[%emt 0:01:09]} g6 {[%emt 0:02:04]} 36. Kf2 {[%emt 0:00:39]} Nf5 {[%emt 0:01:08]} 37. R1e4 {[%emt 0:00:45]} Rh5 {[%emt 0:00:34]} 38. Rg4 {[%emt 0:01:53]} Rh8 {[%emt 0:01:39]} 39. c3 {[%emt 0:00:38]} Kg7 {[%emt 0:00:48]} 40. cxd4 {[%emt 0:00:33]} Rhe8 {[%emt 0:00:50]} 41. Rxe8 {[%emt 0:00:49]} Rxe8 {[%emt 0:00:28]} 42. Nc3 {[%emt 0:00:21]} Re3 {[%emt 0:00:33]} 43. d5 {[%emt 0:00:45]} Bd7 {[%emt 0:00:19]} 44. Bc4 {[%emt 0:01:07]} Re8 {[%emt 0:00:12]} 45. Re4 {[%emt 0:00:25]} Ra8 {[%emt 0:00:41]} 46. Bb5 {[%emt 0:00:18]} Bxb5 {[%emt 0:00:13]} 47. Nxb5 {[%emt 0:00:11]} Rd8 {[%emt 0:00:13]} 48. d6 {[%emt 0:00:13]} Kf8 {[%emt 0:00:42]} 49. Rc4 {[%emt 0:00:22]} Kg7 {[%emt 0:00:10]} 50. Rc7 {[%emt 0:00:24]} Nxd6 {[%emt 0:00:08]} 51. Nxd6 {[%emt 0:00:12]} Rxd6 {[%emt 0:00:05]} 52. Rxb7 {[%emt 0:00:09]} 1-0

[Event "ESP-chT 1st Division 2020"]
[Site "Padron"]
[Date "2020.10.09"]
[Round "7.9"]
[White "Hernando Rodrigo, Julio Antonio"]
[Black "Hernandez, Cristian Andres"]
[Result "0-1"]
[ECO "E12"]
[WhiteElo "2266"]
[BlackElo "2320"]
[Annotator "ChessBase"]
[PlyCount "108"]
[EventDate "2020.10.01"]
[EventType "team-tourn"]
[EventCountry "ESP"]
[SourceTitle "playchess.com"]
[Source "ChessBase"]
[SourceQuality "1"]
[TimeControl "5400+30"]

1. d4 {[%emt 0:00:00]} Nf6 {[%emt 0:00:12]} 2. c4 {[%emt 0:00:00]} e6 {[%emt 0:00:16]} 3. Nf3 {[%emt 0:00:01]} b6 {[%emt 0:01:23]} 4. a3 {[%emt 0:00:55]} c6 {[%emt 0:00:16]} 5. g3 {[%emt 0:02:20]} d5 {[%emt 0:00:22]} 6. Bg2 {[%emt 0:00:50]} Be7 {[%emt 0:01:20]} 7. O-O {[%emt 0:00:36]} O-O {[%emt 0:00:04]} 8. Nc3 {[%emt 0:03:15]} Ba6 {[%emt 0:08:38]} 9. cxd5 {[%emt 0:01:56]} cxd5 {[%emt 0:00:10]} 10. Ne5 {[%emt 0:00:29]} Bb7 {[%emt 0:07:45]} 11. Bg5 {[%emt 0:03:34]} Nbd7 {[%emt 0:05:07]} 12. Nd3 {[%emt 0:03:27]} Ne8 {[%emt 0:02:56]} 13. Bf4 {[%emt 0:06:42]} g5 {[%emt 0:01:01]} 14. Bc1 {[%emt 0:01:42]} f5 {[%emt 0:00:12]} 15. Ne5 {[%emt 0:03:53]} Nd6 {[%emt 0:11:58]} 16. f4 {[%emt 0:08:59]} g4 {[%emt 0:07:20]} 17. e3 {[%emt 0:12:35]} Nxe5 {[%emt 0:06:32]} 18. dxe5 {[%emt 0:04:03]} Ne4 {[%emt 0:01:41]} 19. Ne2 {[%emt 0:00:55]} Ba6 {[%emt 0:18:36]} 20. Bd2 {[%emt 0:02:10]} Bc5 {[%emt 0:07:45]} 21. Re1 {[%emt 0:06:23]} Qd7 {[%emt 0:03:45]} 22. b4 {[%emt 0:10:25]} Be7 {[%emt 0:02:35]} 23. Nd4 {[%emt 0:04:33]} Rfc8 {[%emt 0:01:01]} 24. Bxe4 {[%emt 0:00:35]} dxe4 {[%emt 0:00:11]} 25. h3 {[%emt 0:01:03]} h5 {[%emt 0:02:57]} 26. hxg4 hxg4 {[%emt 0:00:04]} 27. Kf2 {[%emt 0:00:59]} Bc4 {[%emt 0:01:45]} 28. Rh1 {[%emt 0:01:05]} Kg7 {[%emt 0:00:20]} 29. Rc1 {[%emt 0:00:23]} Bd5 {[%emt 0:00:56]} 30. Bc3 {[%emt 0:04:43]} Kg6 {[%emt 0:04:28]} 31. Bb2 {[%emt 0:00:41]} Rh8 {[%emt 0:01:40]} 32. Qe2 {[%emt 0:02:21]} a5 {[%emt 0:00:31]} 33. b5 {[%emt 0:05:29]} Bc5 {[%emt 0:00:10]} 34. a4 {[%emt 0:01:55]} Qg7 {[%emt 0:00:45]} 35. Kg2 {[%emt 0:01:42]} Rxh1 {[%emt 0:00:34]} 36. Rxh1 {[%emt 0:00:03]} Rh8 {[%emt 0:00:56]} 37. Qd1 {[%emt 0:02:58]} Rh6 {[%emt 0:00:44]} 38. Rxh6+ {[%emt 0:04:41]} Qxh6 {[%emt 0:00:05]} 39. Qh1 {[%emt 0:00:06]} Qxh1+ {[%emt 0:00:08]} 40. Kxh1 {[%emt 0:00:02]} Kf7 {[%emt 0:00:17]} 41. Kg2 {[%emt 0:00:07]} Ke7 {[%emt 0:00:08]} 42. Kf2 {[%emt 0:00:12]} Kd7 {[%emt 0:00:06]} 43. Ke2 {[%emt 0:02:07]} Kc7 {[%emt 0:01:41]} 44. Kd2 {[%emt 0:00:16]} Bxd4 {[%emt 0:00:09]} 45. Bxd4 {[%emt 0:00:17]} Bb3 {[%emt 0:00:12]} 46. Kc3 {[%emt 0:00:40]} Bxa4 {[%emt 0:00:05]} 47. Kc4 {[%emt 0:00:13]} Bd1 {[%emt 0:00:04]} 48. Bc3 {[%emt 0:00:45]} Be2+ {[%emt 0:00:06]} 49. Kd4 {[%emt 0:00:19]} Bxb5 {[%emt 0:00:18]} 50. Be1 {[%emt 0:00:58]} Be2 {[%emt 0:02:03]} 51. Bb4 {[%emt 0:00:30]} Kc6 {[%emt 0:01:06]} 52. Be7 {[%emt 0:00:13]} Kb5 {[%emt 0:00:10]} 53. Bd8 {[%emt 0:00:13]} Kb4 {[%emt 0:00:44]} 54. Bxb6 {[%emt 0:00:55]} a4 {[%emt 0:00:15]} 0-1

[Event "ESP-chT 1st Division 2020"]
[Site "Padron"]
[Date "2020.10.09"]
[Round "7.10"]
[White "Perez Manas, Benjamin"]
[Black "Hernando Rodrigo, Jose Maria"]
[Result "0-1"]
[ECO "B31"]
[WhiteElo "2259"]
[BlackElo "2311"]
[Annotator "ChessBase"]
[PlyCount "90"]
[EventDate "2020.10.01"]
[EventType "team-tourn"]
[EventCountry "ESP"]
[SourceTitle "playchess.com"]
[Source "ChessBase"]
[SourceQuality "1"]
[TimeControl "5400+30"]

1. e4 {[%emt 0:00:00]} c5 {[%emt 0:00:00]} 2. Nf3 {[%emt 0:00:00]} Nc6 {[%emt 0:00:00]} 3. Bb5 {[%emt 0:00:00]} g6 {[%emt 0:00:59]} 4. O-O {[%emt 0:00:03]} Bg7 {[%emt 0:00:05]} 5. Bxc6 {[%emt 0:00:33]} dxc6 {[%emt 0:00:42]} 6. d3 {[%emt 0:00:08]} e5 {[%emt 0:05:10]} 7. Nbd2 {[%emt 0:00:14]} Ne7 {[%emt 0:01:17]} 8. Nc4 {[%emt 0:00:19]} Qc7 {[%emt 0:00:47]} 9. Be3 {[%emt 0:00:16]} b6 {[%emt 0:00:59]} 10. a3 {[%emt 0:00:23]} Be6 {[%emt 0:06:22]} 11. b4 {[%emt 0:05:06]} Bxc4 {[%emt 0:08:06]} 12. dxc4 {[%emt 0:00:07]} cxb4 {[%emt 0:00:09]} 13. axb4 {[%emt 0:00:06]} c5 {[%emt 0:01:51]} 14. bxc5 {[%emt 0:02:05]} bxc5 {[%emt 0:00:08]} 15. Nd2 {[%emt 0:00:06]} O-O {[%emt 0:05:15]} 16. Nb3 {[%emt 0:01:08]} Rfd8 {[%emt 0:04:17]} 17. Qe1 {[%emt 0:04:09]} Nc6 {[%emt 0:03:21]} 18. Bxc5 {[%emt 0:04:47]} Nd4 {[%emt 0:04:33]} 19. Qa5 {[%emt 0:02:05]} Qc6 {[%emt 0:05:55]} 20. Bxd4 {[%emt 0:59:37]} exd4 {[%emt 0:00:21]} 21. Qa4 {[%emt 0:05:15]} Qxe4 {[%emt 0:06:17]} 22. Nc5 {[%emt 0:00:09]} Qf5 {[%emt 0:12:01]} 23. Nd3 {[%emt 0:00:18]} Rac8 {[%emt 0:01:50]} 24. Rfb1 {[%emt 0:05:57]} Re8 {[%emt 0:15:06]} 25. Re1 {[%emt 0:02:36]} Red8 {[%emt 0:06:33]} 26. c5 {[%emt 0:01:20]} Rd7 {[%emt 0:01:45]} 27. Qc4 {[%emt 0:01:02]} Bf6 {[%emt 0:01:56]} 28. h3 {[%emt 0:01:11]} h5 {[%emt 0:00:02]} 29. Ra6 {[%emt 0:00:09]} Kg7 {[%emt 0:00:17]} 30. Qa4 {[%emt 0:00:30]} Rcc7 {[%emt 0:01:05]} 31. c6 {[%emt 0:00:45]} Rd6 {[%emt 0:01:16]} 32. Qc4 {[%emt 0:02:23]} Qc8 {[%emt 0:03:36]} 33. Nb4 {[%emt 0:00:29]} d3 {[%emt 0:00:14]} 34. c3 {[%emt 0:03:04]} d2 {[%emt 0:00:45]} 35. Rd1 {[%emt 0:00:05]} Qe8 {[%emt 0:01:11]} 36. Raa1 {[%emt 0:00:44]} Qe5 {[%emt 0:01:14]} 37. Ra3 {[%emt 0:00:48]} a5 {[%emt 0:00:53]} 38. Nd3 {[%emt 0:00:24]} Qe2 {[%emt 0:01:05]} 39. Nb2 {[%emt 0:00:05]} Qe7 {[%emt 0:00:39]} 40. Rxa5 {[%emt 0:01:02]} Rcxc6 {[%emt 0:00:27]} 41. Qa4 {[%emt 0:00:31]} Bxc3 {[%emt 0:00:38]} 42. Rb5 {[%emt 0:00:27]} Rd4 {[%emt 0:01:14]} 43. Qc2 {[%emt 0:00:23]} Qe1+ {[%emt 0:00:03]} 44. Kh2 {[%emt 0:00:15]} Qxf2 {[%emt 0:00:10]} 45. Na4 {[%emt 0:00:53]} Qf4+ {[%emt 0:00:13]} 0-1

[Event "ESP-chT 1st Division 2020"]
[Site "Padron"]
[Date "2020.10.09"]
[Round "7.11"]
[White "Korneev Leskova, Svyatoslav"]
[Black "Martinez Ramirez, Erik"]
[Result "1/2-1/2"]
[ECO "A16"]
[WhiteElo "2170"]
[BlackElo "2231"]
[Annotator "ChessBase"]
[PlyCount "126"]
[EventDate "2020.10.01"]
[EventType "team-tourn"]
[EventCountry "ESP"]
[SourceTitle "playchess.com"]
[Source "ChessBase"]
[SourceQuality "1"]
[TimeControl "5400+30"]

1. c4 {[%emt 0:00:00]} Nf6 {[%emt 0:00:00]} 2. g3 {[%emt 0:00:00]} g6 {[%emt 0:00:00]} 3. Bg2 {[%emt 0:00:06]} d5 {[%emt 0:00:22]} 4. cxd5 {[%emt 0:00:25]} Nxd5 {[%emt 0:00:02]} 5. Nc3 {[%emt 0:00:10]} Nb6 {[%emt 0:00:56]} 6. d3 {[%emt 0:00:15]} Bg7 {[%emt 0:00:07]} 7. Be3 {[%emt 0:00:13]} O-O {[%emt 0:00:20]} 8. h4 {[%emt 0:01:40]} Nc6 {[%emt 0:00:41]} 9. h5 {[%emt 0:02:43]} Nd4 {[%emt 0:02:03]} 10. hxg6 {[%emt 0:01:21]} hxg6 {[%emt 0:00:09]} 11. Bh6 {[%emt 0:01:08]} Bxh6 {[%emt 0:03:00]} 12. Rxh6 {[%emt 0:00:07]} Kg7 {[%emt 0:00:09]} 13. Rh4 {[%emt 0:04:47]} Rh8 {[%emt 0:14:50]} 14. Rxh8 {[%emt 0:00:40]} Qxh8 {[%emt 0:00:08]} 15. Nf3 {[%emt 0:00:11]} Bh3 {[%emt 0:03:33]} 16. Nxd4 {[%emt 0:11:57]} Bxg2 {[%emt 0:00:09]} 17. Kd2 {[%emt 0:01:44]} c5 {[%emt 0:03:35]} 18. Nc2 {[%emt 0:00:34]} Bc6 {[%emt 0:13:04]} 19. Ne3 {[%emt 0:06:37]} c4 {[%emt 0:08:23]} 20. Kc2 {[%emt 0:01:06]} cxd3+ {[%emt 0:01:43]} 21. exd3 {[%emt 0:00:07]} Rd8 {[%emt 0:10:21]} 22. Qe2 {[%emt 0:04:15]} Kg8 {[%emt 0:02:59]} 23. Rd1 {[%emt 0:05:01]} Qd4 {[%emt 0:00:09]} 24. Kb1 {[%emt 0:01:38]} Na4 {[%emt 0:04:14]} 25. Nxa4 {[%emt 0:06:28]} Bxa4 {[%emt 0:01:27]} 26. Nc2 {[%emt 0:02:14]} Qf6 {[%emt 0:04:17]} 27. b3 {[%emt 0:03:28]} Bc6 {[%emt 0:01:41]} 28. Qe3 {[%emt 0:02:39]} a5 {[%emt 0:03:51]} 29. f4 {[%emt 0:06:03]} a4 {[%emt 0:03:07]} 30. Qe5 {[%emt 0:00:21]} axb3 {[%emt 0:01:36]} 31. axb3 {[%emt 0:00:10]} Qxe5 {[%emt 0:01:34]} 32. fxe5 {[%emt 0:00:05]} Be4 {[%emt 0:00:06]} 33. Ne1 {[%emt 0:01:27]} Rd4 {[%emt 0:00:53]} 34. Rd2 {[%emt 0:06:27]} e6 {[%emt 0:02:34]} 35. Kb2 {[%emt 0:04:32]} Bc6 {[%emt 0:01:37]} 36. Re2 {[%emt 0:00:31]} Kg7 {[%emt 0:04:22]} 37. Re3 {[%emt 0:00:16]} g5 {[%emt 0:05:43]} 38. Kc3 {[%emt 0:00:09]} Rd8 39. d4 {[%emt 0:00:42]} Kg6 {[%emt 0:00:29]} 40. Nd3 {[%emt 0:01:04]} Kf5 {[%emt 0:00:27]} 41. Nf2 {[%emt 0:01:08]} Rh8 {[%emt 0:00:19]} 42. Nd1 {[%emt 0:08:13]} Rh1 {[%emt 0:01:21]} 43. Rd3 {[%emt 0:03:53]} Rg1 {[%emt 0:00:50]} 44. Ne3+ {[%emt 0:00:32]} Ke4 {[%emt 0:00:34]} 45. Nc4 {[%emt 0:07:04]} Rc1+ {[%emt 0:00:34]} 46. Kd2 {[%emt 0:00:45]} Rd1+ {[%emt 0:00:08]} 47. Kxd1 {[%emt 0:00:08]} Kxd3 {[%emt 0:00:01]} 48. Nd6 {[%emt 0:00:10]} Kxd4 {[%emt 0:01:13]} 49. Nxf7 {[%emt 0:00:05]} g4 {[%emt 0:00:05]} 50. Kd2 {[%emt 0:00:29]} Bd5 {[%emt 0:00:36]} 51. Nh6 {[%emt 0:01:06]} Bxb3 {[%emt 0:01:23]} 52. Nxg4 {[%emt 0:00:02]} Bd5 {[%emt 0:00:16]} 53. Nf2 {[%emt 0:01:51]} Kxe5 {[%emt 0:00:07]} 54. Ke3 {[%emt 0:00:13]} Bc4 {[%emt 0:00:55]} 55. Ng4+ {[%emt 0:01:26]} Kf5 {[%emt 0:00:59]} 56. Nh6+ {[%emt 0:00:06]} Kg5 {[%emt 0:01:26]} 57. Nf7+ {[%emt 0:00:05]} Kf6 {[%emt 0:00:14]} 58. Nd6 {[%emt 0:00:23]} Bd5 {[%emt 0:00:17]} 59. Kd4 {[%emt 0:00:18]} Kg5 {[%emt 0:00:24]} 60. Ke5 {[%emt 0:00:05]} b6 {[%emt 0:00:19]} 61. Nb5 {[%emt 0:00:41]} Bc4 {[%emt 0:01:09]} 62. Nc7 {[%emt 0:00:26]} b5 {[%emt 0:01:46]} 63. Nxb5 {[%emt 0:00:09]} Bxb5 {[%emt 0:00:06]} 1/2-1/2

[Event "ESP-chT 1st Division 2020"]
[Site "Padron"]
[Date "2020.10.09"]
[Round "7.12"]
[White "Castillo Escario, Yolanda"]
[Black "San Juan Morigosa, Isaura"]
[Result "1-0"]
[ECO "B06"]
[WhiteElo "2006"]
[BlackElo "1766"]
[Annotator "ChessBase"]
[PlyCount "37"]
[EventDate "2020.10.01"]
[EventType "team-tourn"]
[EventCountry "ESP"]
[SourceTitle "playchess.com"]
[Source "ChessBase"]
[SourceQuality "1"]
[TimeControl "5400+30"]

1. e4 {[%emt 0:00:00]} g6 {[%emt 0:02:25]} 2. d4 {[%emt 0:00:00]} Bg7 {[%emt 0:00:04]} 3. c3 {[%emt 0:00:00]} a6 {[%emt 0:00:36]} 4. f4 {[%emt 0:00:07]} d6 {[%emt 0:00:38]} 5. Nf3 {[%emt 0:00:35]} b5 {[%emt 0:00:04]} 6. a4 {[%emt 0:00:26]} c6 {[%emt 0:00:12]} 7. axb5 {[%emt 0:01:13]} Qb6 {[%emt 0:00:13]} 8. bxc6 {[%emt 0:02:42]} Nxc6 {[%emt 0:00:10]} 9. Nbd2 {[%emt 0:01:02]} Nf6 {[%emt 0:00:50]} 10. Nc4 {[%emt 0:09:02]} Qc7 {[%emt 0:00:22]} 11. Bd3 {[%emt 0:01:16]} O-O {[%emt 0:00:11]} 12. O-O {[%emt 0:00:39]} Bb7 {[%emt 0:06:19]} 13. Qe1 {[%emt 0:05:23]} Rfb8 {[%emt 0:06:38]} 14. f5 {[%emt 0:08:36]} d5 {[%emt 0:15:28]} 15. exd5 {[%emt 0:02:31]} Nxd5 {[%emt 0:05:42]} 16. fxg6 {[%emt 0:04:19]} hxg6 {[%emt 0:00:16]} 17. Ng5 {[%emt 0:00:32]} Bf6 {[%emt 0:01:04]} 18. Qh4 {[%emt 0:00:34]} Bxg5 {[%emt 0:01:01]} 19. Qxg5 {[%emt 0:05:31]} 1-0

[Event "ESP-chT 1st Division 2020"]
[Site "Padron"]
[Date "2020.10.09"]
[Round "7.13"]
[White "Ladron De Guevara Pinto, Paolo"]
[Black "Salgado Lopez, Ivan"]
[Result "1/2-1/2"]
[ECO "D45"]
[WhiteElo "2433"]
[BlackElo "2595"]
[Annotator "ChessBase"]
[PlyCount "61"]
[EventDate "2020.10.01"]
[EventType "team-tourn"]
[EventCountry "ESP"]
[SourceTitle "playchess.com"]
[Source "ChessBase"]
[SourceQuality "1"]
[TimeControl "5400+30"]

1. d4 {[%emt 0:00:00]} Nf6 {[%emt 0:00:00]} 2. c4 {[%emt 0:00:00]} c6 {[%emt 0:00:00]} 3. Nc3 {[%emt 0:00:05]} d5 {[%emt 0:00:02]} 4. e3 {[%emt 0:00:41]} e6 {[%emt 0:00:12]} 5. Nf3 {[%emt 0:00:07]} Nbd7 {[%emt 0:00:26]} 6. Qc2 {[%emt 0:01:38]} Bd6 {[%emt 0:00:42]} 7. b3 {[%emt 0:00:11]} O-O {[%emt 0:00:28]} 8. Be2 {[%emt 0:00:05]} b6 {[%emt 0:00:13]} 9. O-O {[%emt 0:00:08]} Bb7 {[%emt 0:00:21]} 10. Bb2 {[%emt 0:00:20]} Qe7 {[%emt 0:00:23]} 11. Rfe1 {[%emt 0:00:13]} Rfe8 {[%emt 0:00:34]} 12. Rad1 {[%emt 0:00:08]} Bb4 {[%emt 0:00:07]} 13. Bf1 {[%emt 0:26:36]} h6 {[%emt 0:03:33]} 14. Nd2 {[%emt 0:10:29]} e5 {[%emt 0:06:10]} 15. dxe5 {[%emt 0:05:42]} Nxe5 {[%emt 0:00:11]} 16. h3 {[%emt 0:07:53]} a6 {[%emt 0:07:13]} 17. Qc1 {[%emt 0:09:05]} Rad8 {[%emt 0:07:26]} 18. a3 {[%emt 0:01:11]} Bd6 {[%emt 0:00:42]} 19. cxd5 {[%emt 0:07:15]} cxd5 {[%emt 0:00:14]} 20. Qa1 {[%emt 0:01:52]} Bb8 {[%emt 0:00:51]} 21. Ncb1 {[%emt 0:03:59]} b5 {[%emt 0:11:10]} 22. Bd4 {[%emt 0:02:22]} Ne4 {[%emt 0:04:38]} 23. f4 {[%emt 0:01:16]} Nd7 {[%emt 0:03:41]} 24. Nxe4 {[%emt 0:00:16]} dxe4 {[%emt 0:00:15]} 25. a4 {[%emt 0:07:33]} b4 {[%emt 0:02:00]} 26. Nd2 {[%emt 0:01:47]} f6 {[%emt 0:02:41]} 27. Rc1 {[%emt 0:01:10]} Kh8 {[%emt 0:01:18]} 28. Rc2 {[%emt 0:00:44]} Nf8 {[%emt 0:04:55]} 29. Bc5 {[%emt 0:02:27]} Qc7 {[%emt 0:02:30]} 30. Rec1 {[%emt 0:02:34]} Qa5 {[%emt 0:05:55]} 31. Bd4 1/2-1/2

[Event "ESP-chT 1st Division 2020"]
[Site "Padron"]
[Date "2020.10.09"]
[Round "7.14"]
[White "Brunello, Sabino"]
[Black "Alshameary Puente, Ismael"]
[Result "0-1"]
[ECO "D31"]
[WhiteElo "2539"]
[BlackElo "2373"]
[Annotator "ChessBase"]
[PlyCount "72"]
[EventDate "2020.10.01"]
[EventType "team-tourn"]
[EventCountry "ESP"]
[SourceTitle "playchess.com"]
[Source "ChessBase"]
[SourceQuality "1"]
[TimeControl "5400+30"]

1. d4 {[%emt 0:00:00]} d5 {[%emt 0:00:00]} 2. c4 {[%emt 0:00:00]} e6 {[%emt 0:00:00]} 3. Nc3 {[%emt 0:00:28]} c6 {[%emt 0:00:00]} 4. e3 {[%emt 0:01:09]} Bd6 {[%emt 0:00:00]} 5. Qc2 {[%emt 0:01:25]} f5 {[%emt 0:00:18]} 6. Bd3 {[%emt 0:09:11]} Nf6 {[%emt 0:00:36]} 7. f3 {[%emt 0:07:12]} O-O {[%emt 0:00:32]} 8. Nge2 {[%emt 0:00:05]} Na6 {[%emt 0:00:06]} 9. a3 {[%emt 0:00:38]} dxc4 {[%emt 0:00:09]} 10. Bxc4 {[%emt 0:00:04]} b5 {[%emt 0:00:05]} 11. Ba2 {[%emt 0:03:41]} Kh8 {[%emt 0:00:58]} 12. O-O {[%emt 0:09:36]} Qe8 {[%emt 0:00:05]} 13. Bd2 {[%emt 0:03:42]} Rb8 {[%emt 0:00:49]} 14. e4 {[%emt 0:03:23]} e5 {[%emt 0:01:54]} 15. dxe5 {[%emt 0:03:09]} Qxe5 {[%emt 0:00:40]} 16. Bf4 {[%emt 0:05:26]} Qc5+ {[%emt 0:05:12]} 17. Kh1 {[%emt 0:00:05]} Bxf4 {[%emt 0:02:39]} 18. Nxf4 {[%emt 0:00:29]} fxe4 {[%emt 0:21:36]} 19. fxe4 {[%emt 0:01:56]} Bd7 {[%emt 0:01:07]} 20. Rad1 {[%emt 0:17:32]} b4 {[%emt 0:14:24]} 21. Nd3 {[%emt 0:02:05]} Qh5 {[%emt 0:00:28]} 22. Ne2 {[%emt 0:10:05]} Ng4 {[%emt 0:07:40]} 23. h3 {[%emt 0:00:09]} Rxf1+ {[%emt 0:07:11]} 24. Rxf1 {[%emt 0:00:11]} Ne3 {[%emt 0:00:06]} 25. Nef4 {[%emt 0:04:10]} Qe8 {[%emt 0:01:43]} 26. Qf2 {[%emt 0:00:31]} Nxf1 {[%emt 0:00:07]} 27. Qxf1 {[%emt 0:00:02]} bxa3 {[%emt 0:02:26]} 28. bxa3 {[%emt 0:00:08]} Qxe4 {[%emt 0:00:21]} 29. Qf2 {[%emt 0:01:06]} c5 {[%emt 0:01:25]} 30. Qg3 {[%emt 0:00:53]} Rf8 {[%emt 0:09:25]} 31. Nh5 {[%emt 0:01:25]} Qg6 {[%emt 0:00:27]} 32. Qe5 {[%emt 0:00:03]} Re8 {[%emt 0:00:55]} 33. Nhf4 {[%emt 0:00:13]} Qf6 {[%emt 0:01:58]} 34. Qd5 {[%emt 0:01:21]} Bc6 {[%emt 0:00:20]} 35. Qc4 {[%emt 0:00:21]} g5 {[%emt 0:02:53]} 36. Nd5 {[%emt 0:00:11]} Qd4 {[%emt 0:00:12]} 0-1